fUSD/lending_fUSD_20260107
["ID","MTS","AMOUNT","RATE_DAILY","PERIOD"]
[400743868,1767807044614,-184.89145749,0.00017999,2]
[400743869,1767807044624,-500.0,0.00017999,2]
[400743870,1767807044634,-500.0,0.00017999,2]
[400743871,1767807044644,-500.0,0.00017999,2]
[400743872,1767807044654,-500.0,0.00017999,2]
[400743873,1767807044664,-400.58303632,0.00017999,2]
[400743874,1767807044673,-300.0,0.00017999,2]
[400743875,1767807044683,-666.0,0.00017999,2]
[400743876,1767807044694,-666.0,0.00017999,2]
[400743877,1767807044704,-300.0,0.00017999,2]
[400743878,1767807044714,-300.0,0.00017999,2]
[400743879,1767807044724,-666.0,0.00017999,2]
[400743880,1767807044734,-5826.21400436,0.00017999,2]
[400743881,1767807044744,-479087.70794188,0.00018,2]
[400743882,1767807044754,-3603.13674707,0.00018,2]
[400743883,1767807044767,-105356.88679345,0.00018,2]
[400743884,1767807044776,-180565.23596955,0.00018,2]
[400743893,1767807045748,-6036477.20075758,0.00018,2]
[400743895,1767807046648,-447.0,0.00017374,2]
[400743896,1767807046658,-101.5091997,0.00018,2]
[400743897,1767807047365,-1.7e-07,0.00018,2]
[400743898,1767807053433,-827.62881354,0.00015251,2]
[400743899,1767807053446,-24240.18938925,0.00015251,2]
[400743900,1767807053456,-151.0,0.00015813,2]
[400743901,1767807053465,-151.0,0.00015813,2]
[400743902,1767807053474,-951.44310393,0.00016616,2]
[400743903,1767807053484,-16245.40805579,0.00017145,2]
[400743904,1767807053493,-4818.0,0.00017659,2]
[400743905,1767807053503,-28019.84495061,0.00018,2]
[400743906,1767807056822,2243.81650981,0.00014494,2]
[400743907,1767807060246,2243.81650976,0.00014981,2]
[400743908,1767807069817,500.0,0.00014786,2]
[400743909,1767807069909,385.90036431,0.00015073,2]
[400743910,1767807098846,500.0,0.00014586,2]
[400743911,1767807099584,500.0,0.00014586,2]
[400743912,1767807099904,500.0,0.00014586,2]
[400743913,1767807121440,500.0,0.00014786,2]
[400743914,1767807127449,433.04790052,0.00015073,2]
[400743915,1767807129088,500.0,0.00015073,2]
[400743916,1767807129276,500.0,0.00015073,2]
[400743917,1767807129325,500.0,0.00015073,2]
[400743918,1767807131752,548.35,0.00014786,2]
[400743919,1767807131858,548.35,0.00014786,2]
[400743920,1767807132050,548.35,0.00014786,2]
[400743921,1767807132131,151.0,0.00015076,2]
[400743922,1767807132221,548.35,0.00014885,2]
[400743923,1767807132416,548.35,0.00015072,2]
[400743924,1767807132530,151.0,0.00015076,2]
[400743925,1767807133490,151.0,0.00015076,2]
[400743926,1767807134092,151.0,0.00015076,2]
[400743927,1767807134307,151.0,0.00015076,2]
[400743928,1767807134959,151.0,0.00015076,2]
[400743929,1767807135559,151.0,0.00015076,2]
[400743930,1767807136614,151.0,0.00015076,2]
[400743931,1767807136651,500.0,0.00015073,2]
[400743932,1767807137046,151.0,0.00015076,2]
[400743933,1767807137629,151.0,0.00015076,2]
[400743934,1767807138073,151.0,0.00015076,2]
[400743935,1767807244226,500.0,0.00015073,2]
[400743936,1767807251219,500.0,0.00015073,2]
[400743938,1767807281821,164.21209948,0.0001471,2]
[400743939,1767807281844,2.44790052,0.0001471,2]
[400743940,1767807282023,166.66,0.00015019,2]
[400743941,1767807283596,172.94,0.00012335,2]
[400743942,1767807301513,1100.0,0.00014992,2]
[400743943,1767807305074,500.0,0.00015073,2]
[400743944,1767807306299,1100.0,0.00014243,2]
[400743945,1767807307797,500.0,0.00015073,2]
[400743946,1767807309974,500.0,0.00015073,2]
[400743947,1767807310378,500.0,0.00015073,2]
[400743948,1767807310974,1100.0,0.00013531,2]
[400743949,1767807311887,500.0,0.00015073,2]
[400743950,1767807315347,1100.0,0.00012854,2]
[400743951,1767807320133,1105.00292435,0.00012211,2]
[400743952,1767807341153,500.0,0.00014786,2]
[400743953,1767807341799,398.05426978,0.00014786,2]
[400743954,1767807363485,200.0,0.00015011,2]
[400743955,1767807367021,500.0,0.00015073,2]
[400743956,1767807371721,54.90490535,0.00015073,2]
[400743957,1767807371745,445.09509465,0.00015073,2]
[400743958,1767807371796,500.0,0.00015073,2]
[400743959,1767807373578,500.0,0.00015073,2]
[400743961,1767807416002,154.13,7.568e-05,2]
[400743962,1767807416218,154.13,8.174e-05,2]
[400743963,1767807416435,154.13,8.78e-05,2]
[400743964,1767807416946,154.13,9.385e-05,2]
[400743965,1767807417136,154.13,9.991e-05,2]
[400743966,1767807417286,154.13,0.00010597,2]
[400743967,1767807417450,154.13,0.00011203,2]
[400743968,1767807417597,154.13,0.00011809,2]
[400743969,1767807417897,154.13,0.00012415,2]
[400743970,1767807418077,154.13,0.00013021,2]
[400743971,1767807418310,154.13,0.00013627,2]
[400743972,1767807418543,154.13,0.00014233,2]
[400743973,1767807419651,154.13,0.00014839,2]
[400743974,1767807426708,500.0,0.00015073,2]
[400743975,1767807426919,500.0,0.00015073,2]
[400743976,1767807431267,500.0,0.00015073,2]
[400743977,1767807473969,2619.69,0.00014835,2]
[400743978,1767807490472,500.0,0.00015073,2]
[400743979,1767807589446,341.54,0.00032876,120]
[400743980,1767807605749,500.0,0.00015073,2]
[400743981,1767807606577,500.0,0.00015073,2]
[400743982,1767807607015,500.0,0.00015073,2]
[400743983,1767807607463,500.0,0.00015073,2]
[400743984,1767807614824,500.0,0.00015073,2]
[400743985,1767807665270,500.0,0.00015073,2]
[400743986,1767807665499,500.0,0.00015073,2]
[400743987,1767807666260,500.0,0.00015073,2]
[400743988,1767807680814,500.0,0.00014586,2]
[400743989,1767807680975,500.0,0.00014586,2]
[400743990,1767807681192,500.0,0.00014586,2]
[400743991,1767807681415,500.0,0.00014586,2]
[400743992,1767807692466,500.0,0.00014586,2]
[400743993,1767807693090,380.32,0.00014586,2]
[400743994,1767807693113,119.68,0.00014586,2]
[400743995,1767807693283,509.41321763,0.00014586,2]
[400743996,1767807726274,500.0,0.00015073,2]
[400743997,1767807726810,500.0,0.00015073,2]
[400743998,1767807728874,500.0,0.00015073,2]
[400743999,1767807729468,500.0,0.00015073,2]
[400744000,1767807740317,500.0,0.00014586,2]
[400744001,1767807740566,500.0,0.00014586,2]
[400744002,1767807740823,219.26,0.00014754,2]
[400744003,1767807740863,500.0,0.00014586,2]
[400744004,1767807741076,500.0,0.00014586,2]
[400744009,1767807785421,556.0741427,0.00015073,2]
[400744010,1767807785720,500.0,0.00015073,2]
[400744011,1767807811544,3994.04,0.00014672,2]
[400744012,1767807846311,101.54263967,0.00014711,2]
[400744013,1767807846334,1053.38736033,0.00014711,2]
[400744014,1767807847311,500.0,0.00015073,2]
[400744015,1767807848382,500.0,0.00015073,2]
[400744016,1767807850833,500.0,0.00015073,2]
[400744017,1767807906283,500.0,0.00015073,2]
[400744018,1767807908635,176.00349903,0.00015073,2]
[400744019,1767807908776,500.0,0.00015073,2]
[400744020,1767807910368,300.0,0.00015201,2]
[400744040,1767807963596,500.0,0.00015073,2]
[400744041,1767807963647,500.0,0.00015073,2]
[400744042,1767807971349,500.0,0.00015073,2]
[400744047,1767808024955,501.43294385,0.00015073,2]
[400744048,1767808028147,500.0,0.00015073,2]
[400744050,1767808049834,100000.0,0.00032876,120]
[400744051,1767808079600,20000.0,0.00032877,120]
[400744052,1767808086721,500.0,0.00015073,2]
[400744053,1767808094718,500.73448024,0.00015073,2]
[400744054,1767808119342,4525.03,0.00032876,120]
[400744055,1767808145138,500.0,0.00015073,2]
[400744056,1767808179751,166.68,0.00015132,2]
[400744057,1767808208155,500.0,0.00015073,2]
[400744058,1767808208705,500.0,0.00015073,2]
[400744059,1767808209197,500.0,0.00015073,2]
[400744060,1767808209931,500.0,0.00015073,2]
[400744061,1767808221400,1519.62,0.0001466,2]
[400744064,1767808232079,-166.66,0.00015329,2]
[400744065,1767808232089,-282.7261415,0.00015329,2]
[400744066,1767808232286,-17.2738585,0.00015329,2]
[400744067,1767808232297,-250.0,0.00015329,2]
[400744068,1767808232306,-278.0,0.00015329,2]
[400744069,1767808232316,-1200.0,0.00015366,2]
[400744070,1767808232326,-300.0,0.00015366,2]
[400744071,1767808232336,-9747.24483351,0.00015367,2]
[400744072,1767808232345,-172.94,0.00015419,2]
[400744073,1767808232355,-31563.6428,0.00015429,2]
[400744074,1767808232363,-300.0,0.00015466,2]
[400744075,1767808232372,-500.0,0.00015466,2]
[400744076,1767808232382,-332.8204732,0.00015466,2]
[400744077,1767808232391,-2273.2335595,0.00015467,2]
[400744078,1767808232401,-2461.96,0.00015467,2]
[400744079,1767808232410,-170.012,0.00015467,2]
[400744080,1767808232421,-2243.81650976,0.00015467,2]
[400744081,1767808232431,-299.99,0.00015467,2]
[400744082,1767808232441,-90687.08765507,0.00015467,2]
[400744088,1767808232524,-2869.89026542,0.00015467,2]
[400744091,1767808232535,-931.5,0.00015467,2]
[400744093,1767808232546,-487.79861401,0.00015467,2]
[400744115,1767808238684,-57097.2734655,0.00015467,2]
[400744118,1767808238695,-999.99,0.00015467,2]
[400744120,1767808238705,-150.99,0.00015467,2]
[400744121,1767808238715,-4539.04,0.00015467,2]
[400744123,1767808238724,-9999.99,0.00015467,2]
[400744125,1767808238734,-5864.44,0.00015467,2]
[400744127,1767808238743,-1275.40536738,0.00015472,2]
[400744129,1767808238753,-608.55,0.00015519,2]
[400744131,1767808238762,-205.56126001,0.00015519,2]
[400744133,1767808238772,-19839.59926937,0.00015519,2]
[400744135,1767808238782,-1455.64956121,0.00015519,2]
[400744137,1767808238791,-500.0,0.0001552,2]
[400744139,1767808238800,-307.8049795,0.0001552,2]
[400744141,1767808238812,-500.0,0.00015528,2]
[400744143,1767808238831,-570.13580689,0.00015528,2]
[400744145,1767808238852,-242.0770294,0.00015528,2]
[400744147,1767808238864,-500.0,0.00015528,2]
[400744149,1767808238875,-535.98168434,0.00015528,2]
[400744151,1767808238886,-500.0,0.00015528,2]
[400744153,1767808238896,-262.6207294,0.00015528,2]
[400744155,1767808238908,-500.0,0.00015528,2]
[400744157,1767808238918,-500.0,0.00015529,2]
[400744159,1767808238928,-305.69773206,0.00015529,2]
[400744161,1767808238938,-500.0,0.00015529,2]
[400744163,1767808238948,-500.0,0.00015529,2]
[400744164,1767808238958,-239.81069419,0.00015529,2]
[400744166,1767808238968,-500.0,0.00015529,2]
[400744168,1767808238977,-500.0,0.00015529,2]
[400744170,1767808238987,-564.95924296,0.00015529,2]
[400744172,1767808238996,-646.90584134,0.00015529,2]
[400744174,1767808239006,-1000000.0,0.00015529,2]
[400744176,1767808239015,-500.0,0.00015621,2]
[400744178,1767808239024,-1000.0,0.00015621,2]
[400744180,1767808239033,-1000.0,0.00015621,2]
[400744182,1767808239043,-515.65451742,0.00015621,2]
[400744184,1767808239052,-411.91622264,0.00015621,2]
[400744186,1767808239061,-1000.0,0.00015621,2]
[400744187,1767808239070,-1000.0,0.00015621,2]
[400744189,1767808239079,-1000.0,0.00015621,2]
[400744191,1767808239089,-1000.0,0.00015621,2]
[400744193,1767808239099,-1000.0,0.00015621,2]
[400744195,1767808239109,-821.53609261,0.00015621,2]
[400744197,1767808239122,-166.66,0.00015639,2]
[400744199,1767808239136,-9747.24483347,0.00015648,2]
[400744201,1767808239155,-1100.0,0.00015781,2]
[400744203,1767808239173,-19839.59926935,0.00015784,2]
[400744205,1767808239183,-1275.40536732,0.00015877,2]
[400744207,1767808239196,-500.0,0.00015895,2]
[400744209,1767808239207,-3383.33666527,0.000159,2]
[400744211,1767808239216,-1000.0,0.00015918,2]
[400744213,1767808239226,-9747.24483347,0.0001593,2]
[400744214,1767808239237,-448.72451731,0.00015938,2]
[400744216,1767808239249,-322.6107,0.00015938,2]
[400744218,1767808239259,-500.0,0.00015938,2]
[400744220,1767808239271,-151.55763012,0.00015938,2]
[400744221,1767808239281,-500.0,0.00015938,2]
[400744223,1767808239292,-1500.0,0.00015938,2]
[400744225,1767808239301,-500.0,0.00015938,2]
[400744227,1767808239313,-1500.0,0.00015938,2]
[400744229,1767808239323,-500.0,0.00015938,2]
[400744230,1767808239332,-457.13206838,0.00015938,2]
[400744232,1767808239342,-197.10869786,0.00015938,2]
[400744260,1767808239353,-620.0,0.00015938,2]
[400744264,1767808239692,-578.20924308,0.00015938,2]
[400744266,1767808239702,-200.0,0.00015938,2]
[400744268,1767808239712,-207.4,0.00015938,2]
[400744270,1767808239721,-2000.0,0.00015938,2]
[400744271,1767808239731,-215.0738,0.00015938,2]
[400744273,1767808239740,-2000.0,0.00015938,2]
[400744275,1767808239750,-223.0315306,0.00015938,2]
[400744277,1767808239759,-2000.0,0.00015938,2]
[400744279,1767808239768,-231.28369723,0.00015938,2]
[400744281,1767808239777,-2000.0,0.00015938,2]
[400744283,1767808239786,-239.84119403,0.00015938,2]
[400744285,1767808239795,-2000.0,0.00015938,2]
[400744287,1767808239805,-248.71531821,0.00015938,2]
[400744288,1767808239814,-2000.0,0.00015938,2]
[400744290,1767808239823,-257.91778498,0.00015938,2]
[400744292,1767808239833,-2000.0,0.00015938,2]
[400744294,1767808239842,-267.46074303,0.00015938,2]
[400744296,1767808239852,-2000.0,0.00015938,2]
[400744298,1767808239862,-277.35679052,0.00015938,2]
[400744300,1767808239871,-2000.0,0.00015938,2]
[400744302,1767808239881,-2000.0,0.00015938,2]
[400744304,1767808239890,-2000.0,0.00015938,2]
[400744306,1767808239900,-250.0,0.00015938,2]
[400744308,1767808239909,-250.0,0.00015938,2]
[400744310,1767808239918,-1745.62,0.00015938,2]
[400744312,1767808239927,-166.66,0.00015948,2]
[400744314,1767808239936,-2243.81650976,0.00015954,2]
[400744316,1767808239946,-500.0,0.00015999,2]
[400744317,1767808239955,-500.0,0.00015999,2]
[400744319,1767808239964,-43557.26538672,0.00016007,2]
[400744321,1767808239974,-19839.59926935,0.00016048,2]
[400744323,1767808239983,-205.56126001,0.00016068,2]
[400744325,1767808239992,-9999.99,0.00016116,2]
[400744327,1767808240001,-1500.0,0.00016168,2]
[400744329,1767808240011,-501.56852644,0.00016168,2]
[400744331,1767808240020,-1500.0,0.00016168,2]
[400744333,1767808240028,-1500.0,0.00016168,2]
[400744335,1767808240038,-522.46913605,0.00016168,2]
[400744337,1767808240047,-1500.0,0.00016168,2]
[400744338,1767808240057,-1500.0,0.00016168,2]
[400744340,1767808240066,-1500.0,0.00016168,2]
[400744341,1767808240076,-9747.24483347,0.00016211,2]
[400744343,1767808240085,-1745.62,0.00016212,2]
[400744345,1767808240094,-587.42,0.00016219,2]
[400744347,1767808240104,-166.66,0.00016258,2]
[400744349,1767808240116,-1275.40536732,0.00016281,2]
[400744351,1767808240131,-500.0,0.00016299,2]
[400744352,1767808240140,-500.0,0.00016299,2]
[400744353,1767808240152,-19839.59926935,0.00016313,2]
[400744354,1767808240162,-151.0,0.00016371,2]
[400744355,1767808240171,-270.92456621,0.00016379,2]
[400744357,1767808240181,-151.0,0.00016384,2]
[400744359,1767808240192,-151.0,0.00016389,2]
[400744361,1767808240201,-151.0,0.0001639,2]
[400744363,1767808240210,-151.0,0.0001639,2]
[400744365,1767808240219,-151.0,0.0001639,2]
[400744367,1767808240229,-151.0,0.00016435,2]
[400744369,1767808240239,-500.0,0.00016437,2]
[400744371,1767808240248,-500.0,0.00016437,2]
[400744373,1767808240258,-500.0,0.00016438,2]
[400744375,1767808240266,-500.0,0.00016438,2]
[400744377,1767808240276,-500.0,0.00016438,2]
[400744379,1767808240285,-500.0,0.00016438,2]
[400744381,1767808240295,-500.0,0.00016438,2]
[400744383,1767808240304,-500.0,0.00016438,2]
[400744385,1767808240314,-500.0,0.00016438,2]
[400744386,1767808240323,-500.0,0.00016438,2]
[400744387,1767808240333,-500.0,0.00016438,2]
[400744388,1767808240342,-500.0,0.00016438,2]
[400744389,1767808240352,-500.0,0.00016438,2]
[400744390,1767808240361,-500.0,0.00016438,2]
[400744391,1767808240371,-500.0,0.00016438,2]
[400744392,1767808240380,-500.0,0.00016438,2]
[400744393,1767808240390,-500.0,0.00016438,2]
[400744394,1767808240399,-500.0,0.00016438,2]
[400744395,1767808240410,-500.0,0.00016438,2]
[400744396,1767808240420,-500.0,0.00016438,2]
[400744397,1767808240431,-500.0,0.00016438,2]
[400744398,1767808240441,-500.0,0.00016438,2]
[400744399,1767808240450,-500.0,0.00016438,2]
[400744400,1767808240460,-500.0,0.00016438,2]
[400744401,1767808240470,-500.0,0.00016438,2]
[400744402,1767808240479,-500.0,0.00016438,2]
[400744403,1767808240488,-500.0,0.00016438,2]
[400744404,1767808240498,-500.0,0.00016438,2]
[400744405,1767808240507,-500.0,0.00016438,2]
[400744406,1767808240517,-500.0,0.00016438,2]
[400744407,1767808240527,-500.0,0.00016438,2]
[400744408,1767808240537,-500.0,0.00016438,2]
[400744409,1767808240547,-500.0,0.00016438,2]
[400744410,1767808240557,-500.0,0.00016438,2]
[400744411,1767808240567,-500.0,0.00016438,2]
[400744412,1767808240576,-500.0,0.00016438,2]
[400744413,1767808240585,-500.0,0.00016438,2]
[400744414,1767808240594,-500.0,0.00016438,2]
[400744415,1767808240604,-500.0,0.00016438,2]
[400744416,1767808240614,-500.0,0.00016438,2]
[400744417,1767808240623,-500.0,0.00016438,2]
[400744418,1767808240633,-500.0,0.00016438,2]
[400744419,1767808240642,-359.39580065,0.00016438,2]
[400744420,1767808240652,-500.0,0.00016438,2]
[400744421,1767808240662,-500.0,0.00016438,2]
[400744422,1767808240671,-500.0,0.00016438,2]
[400744423,1767808240681,-4227.28855535,0.00016438,2]
[400744424,1767808240693,-4227.28855535,0.00016438,2]
[400744425,1767808240703,-4227.28855535,0.00016438,2]
[400744427,1767808240713,-4227.28855535,0.00016438,2]
[400744428,1767808240723,-4227.28855535,0.00016438,2]
[400744429,1767808240732,-4227.28855535,0.00016438,2]
[400744430,1767808240741,-4227.28855535,0.00016438,2]
[400744431,1767808240751,-4227.28855535,0.00016438,2]
[400744432,1767808240761,-4227.28855535,0.00016438,2]
[400744434,1767808240770,-4227.28855535,0.00016438,2]
[400744436,1767808240779,-4227.28855535,0.00016438,2]
[400744437,1767808240788,-4227.28855535,0.00016438,2]
[400744439,1767808240797,-4227.28855535,0.00016438,2]
[400744441,1767808240807,-4227.28855535,0.00016438,2]
[400744443,1767808240817,-4227.28855535,0.00016438,2]
[400744444,1767808240826,-4227.28855535,0.00016438,2]
[400744445,1767808240836,-4227.28855535,0.00016438,2]
[400744446,1767808240845,-4227.28855535,0.00016438,2]
[400744447,1767808240854,-4227.28855535,0.00016438,2]
[400744448,1767808240863,-4227.28855535,0.00016438,2]
[400744449,1767808240872,-4227.28855535,0.00016438,2]
[400744450,1767808240882,-4227.28855535,0.00016438,2]
[400744451,1767808240891,-4227.28855535,0.00016438,2]
[400744452,1767808240901,-4227.28855535,0.00016438,2]
[400744453,1767808240911,-4227.28855535,0.00016438,2]
[400744454,1767808240921,-4227.28855535,0.00016438,2]
[400744455,1767808240930,-4227.28855535,0.00016438,2]
[400744456,1767808240939,-4227.28855535,0.00016438,2]
[400744457,1767808240949,-4227.28855535,0.00016438,2]
[400744458,1767808240958,-4227.28855535,0.00016438,2]
[400744460,1767808240967,-4227.28855535,0.00016438,2]
[400744461,1767808240976,-4227.28855535,0.00016438,2]
[400744462,1767808240986,-4227.28855535,0.00016438,2]
[400744463,1767808240995,-4227.28855535,0.00016438,2]
[400744464,1767808241004,-4227.28855535,0.00016438,2]
[400744465,1767808241014,-4227.28855535,0.00016438,2]
[400744466,1767808241023,-4227.28855535,0.00016438,2]
[400744467,1767808241033,-4227.28855535,0.00016438,2]
[400744468,1767808241042,-4227.28855535,0.00016438,2]
[400744469,1767808241052,-4227.28855535,0.00016438,2]
[400744470,1767808241062,-4227.28855535,0.00016438,2]
[400744471,1767808241072,-4227.28855533,0.00016438,2]
[400744472,1767808241082,-4227.28855533,0.00016438,2]
[400744473,1767808241091,-4227.28855533,0.00016438,2]
[400744474,1767808241102,-4227.28855533,0.00016438,2]
[400744475,1767808241116,-4227.28855533,0.00016438,2]
[400744476,1767808241125,-17702.97,0.00016438,2]
[400744477,1767808241135,-800.0,0.00016438,2]
[400744478,1767808241145,-2243.81650976,0.0001644,2]
[400744479,1767808241156,-189.05,0.00016442,2]
[400744480,1767808241166,-857.95,0.0001645,2]
[400744481,1767808241176,-1745.62,0.00016486,2]
[400744482,1767808241185,-9747.24483347,0.00016493,2]
[400744483,1767808241195,-1000.0,0.00016515,2]
[400744484,1767808241204,-1000.0,0.00016521,2]
[400744485,1767808241213,-1000.0,0.00016521,2]
[400744486,1767808241223,-630.21,0.00016521,2]
[400744487,1767808241232,-19839.59926935,0.00016577,2]
[400744488,1767808241242,-300.0,0.0001658,2]
[400744489,1767808241251,-302.52168594,0.0001658,2]
[400744490,1767808241260,-510.0,0.00016595,2]
[400744491,1767808241269,-1100.0,0.00016612,2]
[400744492,1767808241278,-360.78764565,0.00016643,2]
[400744493,1767808241288,-500.0,0.00016643,2]
[400744494,1767808241298,-322.49416926,0.00016643,2]
[400744495,1767808241307,-507.8387061,0.00016643,2]
[400744496,1767808241318,-578.87202896,0.00016643,2]
[400744497,1767808241327,-182.6941269,0.00016643,2]
[400744498,1767808241336,-500.0,0.00016643,2]
[400744499,1767808241346,-500.0,0.00016643,2]
[400744500,1767808241355,-500.0,0.00016643,2]
[400744501,1767808241364,-378.44615396,0.00016643,2]
[400744502,1767808241374,-500.0,0.00016643,2]
[400744503,1767808241384,-500.0,0.00016643,2]
[400744504,1767808241393,-500.0,0.00016643,2]
[400744505,1767808241403,-628.50709886,0.00016643,2]
[400744506,1767808241413,-500.0,0.00016643,2]
[400744507,1767808241422,-1275.40536732,0.00016686,2]
[400744508,1767808241432,-165.12,0.00016712,2]
[400744509,1767808241442,-2000.0,0.00016716,2]
[400744510,1767808241452,-408.10299042,0.00016716,2]
[400744511,1767808241461,-1037.00577444,0.00016716,2]
[400744512,1767808241471,-2000.0,0.00016716,2]
[400744513,1767808241480,-652.22115376,0.00016716,2]
[400744514,1767808241489,-2000.0,0.00016716,2]
[400744515,1767808241499,-1745.62,0.0001676,2]
[400744516,1767808241508,-9747.24483347,0.00016774,2]
[400744517,1767808241517,-420.0,0.00016811,2]
[400744518,1767808241527,-19839.59926935,0.00016842,2]
[400744519,1767808241537,-600.0,0.00016862,2]
[400744520,1767808241547,-639.05245982,0.00016862,2]
[400744521,1767808241556,-250.0,0.00016862,2]
[400744522,1767808241565,-600.0,0.00016862,2]
[400744523,1767808241575,-600.0,0.00016862,2]
[400744524,1767808241586,-600.0,0.00016862,2]
[400744525,1767808241595,-2500.0,0.00016862,2]
[400744526,1767808241605,-195.0,0.00016862,2]
[400744527,1767808241615,-5000.0,0.00016862,2]
[400744528,1767808241625,-300.0,0.00016862,2]
[400744529,1767808241635,-152.10889041,0.00016862,2]
[400744530,1767808241644,-193.0,0.00016862,2]
[400744531,1767808241654,-250.0,0.00016862,2]
[400744532,1767808241664,-1680.0,0.00016896,2]
[400744533,1767808241673,-2243.81650976,0.00016927,2]
[400744534,1767808241683,-776.19853,0.00017,2]
[400744535,1767808241693,-250.0,0.00017,2]
[400744536,1767808241702,-1745.62,0.00017034,2]
[400744537,1767808241712,-9747.24483347,0.00017056,2]
[400744538,1767808241723,-1275.40536732,0.00017091,2]
[400744539,1767808241732,-1226.0,0.000171,2]
[400744540,1767808241741,-500.0,0.000171,2]
[400744541,1767808241751,-150.0,0.000171,2]
[400744542,1767808241760,-150.0,0.000171,2]
[400744543,1767808241770,-281.40504741,0.000171,2]
[400744544,1767808241779,-174.06741652,0.000171,2]
[400744545,1767808241789,-500.0,0.000171,2]
[400744546,1767808241798,-500.0,0.000171,2]
[400744547,1767808241807,-500.0,0.000171,2]
[400744548,1767808241817,-19839.59926935,0.00017106,2]
[400744549,1767808241827,-1000.0,0.00017112,2]
[400744550,1767808241836,-500.0,0.00017151,2]
[400744551,1767808241846,-1226.0,0.00017155,2]
[400744552,1767808241855,-500.0,0.00017155,2]
[400744553,1767808241864,-150.0,0.00017155,2]
[400744554,1767808241874,-199.62704522,0.00017155,2]
[400744555,1767808241883,-500.0,0.00017155,2]
[400744556,1767808241892,-500.0,0.00017155,2]
[400744557,1767808241904,-500.0,0.00017155,2]
[400744558,1767808241913,-679.0,0.00017161,2]
[400744559,1767808241923,-679.0,0.00017177,2]
[400744560,1767808241932,-299.888,0.00017191,2]
[400744561,1767808241941,-503.18143071,0.00017191,2]
[400744562,1767808241951,-500.0,0.00017191,2]
[400744563,1767808241961,-1226.0,0.0001721,2]
[400744564,1767808241970,-500.0,0.0001721,2]
[400744565,1767808241979,-150.0,0.0001721,2]
[400744566,1767808241990,-500.0,0.0001721,2]
[400744567,1767808241999,-500.0,0.0001721,2]
[400744568,1767808242008,-500.0,0.0001721,2]
[400744569,1767808242018,-679.0,0.00017215,2]
[400744570,1767808242027,-2500.0,0.00017264,2]
[400744571,1767808242036,-1226.0,0.00017264,2]
[400744572,1767808242046,-500.0,0.00017264,2]
[400744573,1767808242055,-281.23799714,0.00017264,2]
[400744574,1767808242065,-500.0,0.00017264,2]
[400744575,1767808242074,-500.0,0.00017264,2]
[400744576,1767808242083,-500.0,0.00017264,2]
[400744577,1767808242093,-2500.0,0.00017264,2]
[400744578,1767808242102,-2500.0,0.00017264,2]
[400744579,1767808242114,-334.5472959,0.00017307,2]
[400744580,1767808242126,-642.94,0.00017307,2]
[400744581,1767808242135,-287.61899177,0.00017307,2]
[400744582,1767808242145,-1745.62,0.00017308,2]
[400744583,1767808242155,-1226.0,0.00017319,2]
[400744584,1767808242165,-500.0,0.00017319,2]
[400744585,1767808242175,-500.0,0.00017319,2]
[400744586,1767808242184,-500.0,0.00017319,2]